[Event "2nd Bundesliga Nord 2024-25"]
[Site "Germany"]
[Date "2025.02.22"]
[Round "8.4"]
[White "Meins, Gerlef"]
[Black "Bashylina, Luisa"]
[Result "1-0"]
[Annotator "TA"]
[ECO "D90"]
[WhiteElo "2374"]
[BlackElo "2105"]
[PlyCount "125"]
[EventDate "2024.11.29"]
[EventType "team-tourn"]
[EventCountry "GER"]
[SourceTitle "playchess.com"]
[Source "ChessBase"]
[SourceQuality "1"]
[WhiteTeam "Werder Bremen II"]
[BlackTeam "Solingen II"]
[TimeControl "40/5400+30:1800+30"]

{[%evp 14,125,31,24,32,41,120,115,115,96,157,149,160,95,141,148,124,133,153,142,175,174,174,187,163,165,132,92,107,104,100,74,132,97,98,102,96,20,77,91,62,65,70,64,76,64,224,-1492,-612,-599,20,-58,273,-29997,-52,-608,406,143,200,183,258,258,525,525,525,525,525,520,495,449,449,399,497,468,426,446,595,577,541,396,460,502,502,508,537,507,495,450,725,702,4598,5197,1722,10702,29973,29975,29975,29975,29985,29986,29986,29987,29987,29988,29990,29991,29991,29991,29991,29992,29992,29993,29995,29996]} 1. Nf3 {[%emt 0:00:08]} Nf6 {[%emt 0:00:06]} 2. c4 {[%emt 0:00:31]} g6 {[%emt 0:00:15]} 3. Nc3 {[%emt 0:00:21]} d5 {[%emt 0:00:38]} 4. cxd5 {[%emt 0:01:06]} Nxd5 {[%emt 0:00:06]} 5. Qb3 {[%emt 0:01:25]} Nb6 {[%emt 0:00:38]} 6. d4 {[%emt 0:00:44]} Bg7 {[%emt 0:00:14]} 7. Bf4 {[%emt 0:01:15]} O-O {[%emt 0:01:27]} 8. e3 {[%emt 0:03:07]} c5 {[%emt 0:12:28] D90: Grünfeld: 4 Nf3 Bg7 sidelines.} 9. dxc5 {[%emt 0:16:30]} N6d7 {[%emt 0:01:20]} (9... Be6 $14 10. Qa3 Bxc3+ 11. bxc3 (11. Qxc3 Nd5 $11) 11... Nc4) 10. Qa3 $1 $16 {[%emt 0:07:03] White has more active pieces.} Nc6 {[%emt 0:11:56] White is better.} 11. Bb5 {[%emt 0:06:00]} Qa5 {[%emt 0:09:13]} (11... Nxc5 $142 12. Qxc5 Qa5) 12. Qxa5 {[%emt 0:00:46]} Nxa5 {[%emt 0:00:06]} 13. Rc1 {[%emt 0:02:26]} (13. Nd5 $142 Nxc5 14. Nxe7+ Kh8 15. Rc1) 13... a6 $146 {[%emt 0:16:31] [#]} (13... Nc6 $142) ({Predecessor:} 13... Nxc5 14. b4 Bxc3+ 15. Rxc3 Ne4 16. Rc7 Nc6 17. Bxc6 bxc6 18. Nd4 a5 19. Nxc6 axb4 {1-0 Vazquez,G (2436)-He,A (2246) PRO League Stage rapid 2018 (6)}) 14. Be2 $1 {[%emt 0:12:01]} Nc6 {[%emt 0:13:53][%cal Oe7e5]} 15. Na4 {[%emt 0:05:16]} e5 {[%emt 0:03:28]} 16. Bg3 {[%emt 0:00:31]} Rd8 {[%emt 0:05:36]} 17. O-O {[%emt 0:08:54]} Nf8 {[%emt 0:01:50]} 18. Nb6 {[%emt 0:03:41]} Rb8 {[%emt 0:00:19]} 19. Nxc8 {[%emt 0:04:22]} Rbxc8 {[%emt 0:00:05]} 20. Bc4 {[%emt 0:00:27]} h6 {[%emt 0:02:26] Inhibits Ng5.} 21. e4 {[%emt 0:05:24]} Nd7 {[%emt 0:08:32]} 22. Bd5 {[%emt 0:01:53]} Bf8 {[%emt 0:01:49]} (22... Nb4 $142) 23. Bxc6 {[%emt 0:05:39]} Rxc6 {[%emt 0:00:13]} 24. Rfd1 {[%emt 0:00:40]} (24. Bxe5 Nxe5 25. Nxe5 Rxc5 26. Rxc5 Bxc5 $14) 24... f6 {[%emt 0:01:22]} 25. b4 {[%emt 0:00:54]} (25. Rd5 $16) 25... a5 {[%emt 0:03:26]} 26. a3 {[%emt 0:00:15]} axb4 {[%emt 0:00:27]} 27. axb4 {[%emt 0:00:03]} b6 {[%emt 0:00:18][%cal Rb6c5] [#]} 28. Bxe5 $1 {[%emt 0:02:13]} fxe5 {[%emt 0:02:09]} 29. Nxe5 {[%emt 0:00:10]} Nxe5 {[%emt 0:00:10] [#]} (29... Rc7 $14) 30. Rd3 $4 {[%emt 0:11:45][%mdl 8192]} Rd7 31. Rxd7 {[%emt 0:00:00]} bxc5 $2 {[%emt 0:00:47]} (31... Nxd7 $19 32. g3 bxc5 33. bxc5 Ne5 (33... Nxc5 $2 34. f4 $19) (33... Bxc5 $2 34. Kg2 $19) (33... Rxc5 $2 34. Rd1 $19)) 32. Rd8 {[%emt 0:00:00]} (32. b5 $11 Rb6 33. Rd5) 32... Ra6 $2 {[%mdl 8192]} (32... cxb4 $15 {keeps the upper hand.} 33. Rxc6 Nxc6) 33. Rxc5 $4 {[%emt 0:00:00][%mdl 8192]} (33. bxc5 Kf7 34. Kf1 Be7 $11) (33. f4 $18 Nf7 34. Rb8 (34. b5 Rb6 $16)) 33... Nc6 $2 {[%emt 0:01:07]} (33... Ra1+ {mates} 34. Rc1 Rxc1+ 35. Rd1 Rxd1#) 34. g3 $2 {[%emt 0:00:00][%mdl 8192]} Nxb4 $4 {[%emt 0:00:32][%mdl 8192]} (34... Ra1+ $19 {and life is good for Black.} 35. Kg2 Nxd8) 35. Rdc8 $2 {[%emt 0:00:00]} (35. Rcc8 $18 Rf6 36. e5) 35... Rb6 {[%emt 0:04:33]} (35... Re6 $16) 36. Kg2 $18 Re6 {[%emt 0:00:00]} (36... Rb7 37. Rc3 h5) 37. Rb5 {[%emt 0:00:00]} Nd3 {[%emt 0:00:00]} (37... Nc6 {was worth a try.}) 38. Rbb8 {[%emt 0:00:00]} Rf6 {[%emt 0:00:00]} 39. f4 {[%emt 0:00:00]} Kg7 {[%emt 0:00:22]} 40. e5 {[%emt 0:00:00] Dodges Bd6} Rf5 {[%emt 0:00:02]} 41. Rc7+ {[%emt 0:32:25]} Rf7 {[%emt 0:31:08]} 42. Rbb7 {[%emt 0:00:31]} Rxc7 {[%emt 0:00:33]} 43. Rxc7+ {[%emt 0:00:06]} Kg8 {[%emt 0:00:06]} 44. Kf3 {[%emt 0:02:04]} Nc5 {[%emt 0:00:00]} 45. g4 {[%emt 0:00:00]} Ne6 {[%emt 0:00:00]} 46. Rb7 {[%emt 0:00:00]} Nc5 {[%emt 0:00:00]} 47. Ra7 {[%emt 0:00:00]} Bg7 {[%emt 0:00:00]} 48. Rc7 {[%emt 0:00:00]} Ne6 {[%emt 0:00:00]} 49. Re7 {[%emt 0:00:00]} Nc5 {[%emt 0:00:00]} 50. f5 {[%emt 0:00:00]} gxf5 {[%emt 0:00:00]} (50... Nd3 $142 51. f6 (51. fxg6 Nxe5+ 52. Ke4 Nxg6 $11) 51... Nxe5+ 52. Rxe5 Bxf6) 51. gxf5 {[%emt 0:00:00][%cal Bg4f5,Bf5f6][%mdl 32]} Nd3 {[%emt 0:00:00]} 52. Ke4 {[%emt 0:00:00]} Nf2+ {[%emt 0:00:00]} 53. Kd5 {[%emt 0:00:00] White threatens f6 and mate.} Ng4 {[%emt 0:00:00]} 54. h3 {[%emt 0:00:00] White mates.} Nf2 {[%emt 0:00:00]} 55. f6 {[%emt 0:00:00]} Bf8 {[%emt 0:00:00] [#]} 56. e6 $1 {[%emt 0:00:00]} Nxh3 {[%emt 0:00:15]} 57. Re8 {[%emt 0:00:00]} Nf4+ {[%emt 0:01:10]} 58. Ke5 {[%emt 0:00:00]} Ng6+ {[%emt 0:04:56]} 59. Ke4 {[%emt 0:00:00]} h5 {[%emt 0:01:03]} 60. Ra8 {[%emt 0:00:00]} Kh7 {[%emt 0:00:55] [#]} 61. Rxf8 $1 {[%emt 0:00:32]} Nxf8 {[%emt 0:00:06]} 62. e7 {[%emt 0:00:05]} Nd7 {[%emt 0:00:05]} 63. Kf5 {[%emt 0:00:05] Weighted Error Value: White=0.44/Black=0.97  Loses game:     	White=1     	Black=1      Missed win:     	White=3     	Black=1      Mistake:       	White=2     	Black=9      Inaccurate:     	White=1     	Black=3      OK:         	White=15    	Black=13     Best:        	White=4     	Black=2      Strong:       	White=2     	---        Brilliant:      	White=1     	---} (63. e8=R $2 {is the wrong capture.} Nxf6+ 64. Kf4 Nxe8 $19) 1-0

[Event "2nd Bundesliga Nord 2024-25"]
[Site "Germany"]
[Date "2025.02.22"]
[Round "8.5"]
[White "Schaefer, Markus"]
[Black "Van der Hagen, Loek"]
[Result "1/2-1/2"]
[Annotator "TA"]
[ECO "C60"]
[WhiteElo "2344"]
[BlackElo "2287"]
[PlyCount "61"]
[EventDate "2024.11.29"]
[EventType "team-tourn"]
[EventCountry "GER"]
[SourceTitle "playchess.com"]
[Source "ChessBase"]
[SourceQuality "1"]
[WhiteTeam "Solingen II"]
[BlackTeam "Werder Bremen II"]
[TimeControl "40/5400+30:1800+30"]

{[%evp 9,61,38,50,28,31,29,27,33,53,23,58,46,39,40,42,54,78,67,84,77,79,71,81,74,81,81,83,55,104,39,52,52,51,54,63,61,77,73,73,76,76,66,76,60,58,47,46,54,50,51,50,50,57,34]} 1. e4 {[%emt 0:00:03]} e5 {[%emt 0:00:36]} 2. Nf3 {[%emt 0:00:10]} Nc6 {[%emt 0:00:07]} 3. Bb5 {[%emt 0:01:22]} Nge7 {[%emt 0:00:37]} 4. Nc3 {[%emt 0:09:35]} a6 {[%emt 0:00:38]} 5. Bc4 {[%emt 0:07:12]} d6 {[%emt 0:02:06]} 6. d4 {[%emt 0:02:51] C60: Ruy Lopez: Unusual Black 3rd moves and 3...g6.} Nxd4 {[%emt 0:00:31]} 7. Nxd4 {[%emt 0:01:55]} exd4 {[%emt 0:00:05]} 8. Qxd4 {[%emt 0:00:32] White has an edge.} Be6 {[%emt 0:00:15] [#] and ...Nc6 would now be decisive} 9. Be2 $146 {[%emt 0:10:18]} ({Predecessor:} 9. Bb3 c5 10. Qd3 b5 11. Bxe6 fxe6 12. Bg5 Qd7 13. O-O Nc6 14. Rad1 Ne5 15. Qg3 {1-0 Caruana,F (2792)-Theodorou,N (2577) Wch Rapid Warsaw 2021 (2)}) 9... c5 {[%emt 0:12:30]} 10. Qd3 {[%emt 0:10:14]} d5 {[%emt 0:07:01]} 11. exd5 {[%emt 0:04:32]} Nxd5 {[%emt 0:00:34]} 12. O-O {[%emt 0:14:02]} Nb4 {[%emt 0:14:48]} 13. Qe4 {[%emt 0:00:32]} Be7 {[%emt 0:03:25]} 14. a3 {[%emt 0:05:34]} (14. Qxb7 Nxc2 15. Rd1 Nd4 $17) 14... Nc6 {[%emt 0:01:14] [#]} 15. Be3 $1 {[%emt 0:04:46] White is more active.} Nd4 {[%emt 0:22:37]} 16. Rad1 {[%emt 0:03:15][%cal Re3d4]} (16. Qxb7 $2 Nxe2+ 17. Kh1 (17. Nxe2 $2 Bd5 $19) 17... Nxc3 18. bxc3 Bd5 $19) 16... O-O {[%emt 0:11:12]} 17. Bxd4 {[%emt 0:01:40]} cxd4 {[%emt 0:00:05]} 18. Rxd4 {[%emt 0:00:11]} Qb6 {[%emt 0:05:05]} (18... Qe8 $14 {might be stronger.}) 19. Bd3 {[%emt 0:01:29]} (19. Nd5 $16 Bxd5 20. Rxd5) 19... g6 {[%emt 0:04:24]} 20. Nd5 {[%emt 0:00:33]} Bxd5 {[%emt 0:00:05]} 21. Rxd5 {[%emt 0:00:08]} (21. Qxd5 $2 {too greedy.} Rad8 (21... Qxb2 22. Qe4 $17) 22. Qe5 Qxd4 $19) 21... Bf6 {[%emt 0:00:34][%cal Of8e8]} 22. b3 {[%emt 0:00:30]} Rae8 {[%emt 0:03:16]} 23. Qf3 {[%emt 0:01:20]} Qc6 {[%emt 0:03:30]} 24. a4 {[%emt 0:05:00]} Kg7 {[%emt 0:01:21]} 25. Bc4 {[%emt 0:00:55][%cal Bd3c4,Bc4d5,Bd5f3][%mdl 32]} Re5 {[%emt 0:00:50]} 26. Qd3 {[%emt 0:04:53]} Rfe8 {[%emt 0:01:20] White is slightly better.} 27. Rxe5 {[%emt 0:01:11]} Rxe5 {[%emt 0:00:18]} 28. Rd1 {[%emt 0:01:15]} b5 {[%emt 0:02:04]} 29. axb5 {[%emt 0:00:14]} axb5 {[%emt 0:00:04]} 30. Bd5 {[%emt 0:00:07]} Qc5 {[%emt 0:00:10]} 31. Bf3 {[%emt 0:04:33] Weighted Error Value: White=0.08 (flawless) /Black=0.09 (flawless)   Mistake:       	White=1     	Black=1      Inaccurate:     	White=2     	Black=1      OK:         	White=10    	Black=7      Best:        	White=2     	Black=1      Strong:       	White=1     	---} 1/2-1/2

[Event "2nd Bundesliga Nord 2024-25"]
[Site "Germany"]
[Date "2025.02.22"]
[Round "8.6"]
[White "Lobzhanidze, Davit"]
[Black "Zolfagharian, Kevin"]
[Result "1/2-1/2"]
[Annotator "TA"]
[ECO "C42"]
[WhiteElo "2394"]
[BlackElo "2215"]
[PlyCount "83"]
[EventDate "2024.11.29"]
[EventType "team-tourn"]
[EventCountry "GER"]
[SourceTitle "playchess.com"]
[Source "ChessBase"]
[SourceQuality "1"]
[WhiteTeam "Werder Bremen II"]
[BlackTeam "Solingen II"]
[TimeControl "40/5400+30:1800+30"]

{[%evp 24,83,14,7,33,25,37,31,47,44,45,45,47,50,52,38,42,42,40,17,15,2,9,0,0,0,0,0,0,0,0,0,0,0,0,0,0,0,4,10,10,6,1,0,8,0,0,0,0,0,0,0,0,0,0,0,0,0,0,0,4,0]} 1. e4 {[%emt 0:00:07]} e5 {[%emt 0:01:19]} 2. Nf3 {[%emt 0:00:47]} Nf6 {[%emt 0:00:07]} 3. Nxe5 {[%emt 0:03:50]} d6 {[%emt 0:00:14]} 4. Nf3 {[%emt 0:00:40]} Nxe4 {[%emt 0:00:11]} 5. Qe2 {[%emt 0:11:37]} Qe7 {[%emt 0:01:54]} 6. d3 {[%emt 0:00:15]} Nf6 {[%emt 0:01:07]} 7. Bg5 {[%emt 0:00:32]} Qxe2+ {[%emt 0:08:04]} 8. Bxe2 {[%emt 0:02:59]} Be7 {[%emt 0:00:27]} 9. Nc3 {[%emt 0:02:00]} c6 {[%emt 0:05:47]} 10. O-O-O {[%emt 0:02:47]} O-O {[%emt 0:05:56]} 11. Rhe1 {[%emt 0:06:05]} Nbd7 {[%emt 0:16:59][%cal Bb8d7,Bd7e5,Be5g6][%mdl 32]} 12. Bf1 {[%emt 0:16:59]} Re8 {[%emt 0:03:22]} 13. Ne4 {[%emt 0:11:23]} Kf8 {[%emt 0:12:31] C42: Petroff Defence: 3 Nxe5 and unusual White 3rd moves.} 14. Bf4 {[%emt 0:04:50]} Nxe4 {[%emt 0:02:55]} 15. dxe4 {[%emt 0:02:23]} Ne5 $146 {[%emt 0:00:23] White is slightly better.} (15... Nf6 16. c4 Bg4 17. h3 Bxf3 18. gxf3 Rad8 19. Kb1 Nd7 20. Bg3 Nc5 21. Rd2 Ne6 22. Red1 g5 23. Bh2 Nf4 24. h4 h6 25. hxg5 hxg5 26. Bxf4 gxf4 27. Bh3 Kg7 28. Rg1+ {½-½ Kriebel,T (2517)-Papp,G (2603) BL2-Ost 1819 2018 (8.1)}) 16. Nd4 {[%emt 0:07:51]} Ng6 {[%emt 0:10:37]} 17. Bg3 {[%emt 0:03:55]} Bg5+ {[%emt 0:03:41]} 18. Kb1 {[%emt 0:00:16]} Bf4 {[%emt 0:00:18]} 19. Nf5 {[%emt 0:09:30][%cal Bd4f5,Bf5g3,Bg3h5][%mdl 32]} Bxg3 {[%emt 0:12:15]} ({Avoid the trap} 19... Bxf5 $2 20. exf5 Bxg3 21. fxg6 (21. hxg3 Rxe1 22. Rxe1 Ne5 $15) 21... hxg6 (21... Rxe1 $2 22. Rxe1 hxg6 23. hxg3 $18) 22. hxg3 $18 (22. fxg3 d5 $18)) 20. Nxg3 {[%emt 0:01:40]} ({Much worse is} 20. hxg3 Bxf5 21. exf5 Rxe1 22. Rxe1 Ne5 $15) 20... Rd8 {[%emt 0:00:23]} 21. Nh5 {[%emt 0:01:57]} Be6 {[%emt 0:05:41] The position is equal.} 22. h3 {[%emt 0:00:22]} f6 {[%emt 0:02:24]} 23. f4 {[%emt 0:01:05] [#] and f5 should not be overlooked} Bf7 {[%emt 0:00:02]} 24. g4 {[%emt 0:04:00]} d5 {[%emt 0:00:44]} 25. exd5 {[%emt 0:01:52]} Rxd5 {[%emt 0:01:56]} 26. Rxd5 {[%emt 0:00:32]} Bxd5 {[%emt 0:00:01]} 27. Kc1 {[%emt 0:00:26]} Rd8 {[%emt 0:01:51]} 28. b3 {[%emt 0:00:21]} Bf7 {[%emt 0:00:40]} 29. Bd3 {[%emt 0:00:43]} Rd4 {[%emt 0:01:07]} 30. Rf1 {[%emt 0:01:06]} Ne7 {[%emt 0:01:43]} 31. Ng3 {[%emt 0:00:09]} Bg6 {[%emt 0:00:21]} 32. Bxg6 {[%emt 0:01:29]} hxg6 $11 {[%emt 0:00:44][%mdl 4096] Endgame KRN-KRN} 33. Ne2 {[%emt 0:00:09]} Rd7 {[%emt 0:00:17]} 34. Rf3 {[%emt 0:01:14]} Nd5 {[%emt 0:00:22]} 35. c3 {[%emt 0:01:06]} Kf7 {[%emt 0:00:32]} 36. Kc2 {[%emt 0:00:31]} Nc7 {[%emt 0:00:23]} 37. Rd3 {[%emt 0:00:52]} Re7 {[%emt 0:00:57]} 38. Kd2 {[%emt 0:00:07]} Nd5 {[%emt 0:00:11][%cal Oe7e2] [#]} 39. Rf3 {[%emt 0:00:08]} Rd7 {[%emt 0:00:34]} 40. Rd3 {[%emt 0:00:50]} Re7 {[%emt 0:00:30][%cal Oe7e2] ...Rxe2+! would now be deadly.} 41. Rd4 {[%emt 0:10:55]} Nc7 {[%emt 0:05:30]} 42. Rd3 {[%emt 0:07:04] Weighted Error Value: White=0.02 (flawless) /Black=0.02 (flawless)   OK:         	White=13    	Black=11     Best:        	White=1     	---} 1/2-1/2

[Event "2nd Bundesliga Nord 2024-25"]
[Site "Germany"]
[Date "2025.02.22"]
[Round "8.7"]
[White "Michalczak, Thomas"]
[Black "Joachim, Sven"]
[Result "1/2-1/2"]
[Annotator "TA"]
[ECO "C95"]
[WhiteElo "2194"]
[BlackElo "2405"]
[PlyCount "59"]
[EventDate "2024.11.29"]
[EventType "team-tourn"]
[EventCountry "GER"]
[SourceTitle "playchess.com"]
[Source "ChessBase"]
[SourceQuality "1"]
[WhiteTeam "Solingen II"]
[BlackTeam "Werder Bremen II"]
[TimeControl "40/5400+30:1800+30"]

{[%evp 37,59,33,48,48,48,39,48,23,31,25,25,24,45,29,43,38,78,28,28,28,28,28,29,0]} 1. e4 {[%emt 0:00:06]} e5 {[%emt 0:00:20]} 2. Nf3 {[%emt 0:00:08]} Nc6 {[%emt 0:00:12]} 3. Bb5 {[%emt 0:00:17]} a6 {[%emt 0:00:21]} 4. Ba4 {[%emt 0:00:07]} Nf6 {[%emt 0:00:24]} 5. O-O {[%emt 0:00:30]} Be7 {[%emt 0:00:47]} 6. Re1 {[%emt 0:00:11]} b5 {[%emt 0:00:12]} 7. Bb3 {[%emt 0:00:06]} d6 {[%emt 0:00:44]} 8. c3 {[%emt 0:00:08]} O-O {[%emt 0:00:06]} 9. h3 {[%emt 0:00:03]} Nb8 {[%emt 0:00:32]} 10. d4 {[%emt 0:00:26]} Nbd7 {[%emt 0:00:10]} 11. Nbd2 {[%emt 0:00:22]} Bb7 {[%emt 0:00:42]} 12. Bc2 {[%emt 0:00:09]} Re8 {[%emt 0:00:23]} 13. Nf1 {[%emt 0:00:10]} Bf8 {[%emt 0:00:31]} 14. Ng3 {[%emt 0:00:07]} g6 {[%emt 0:00:30]} 15. a4 {[%emt 0:00:25]} c5 {[%emt 0:01:10]} 16. d5 {[%emt 0:00:08]} c4 {[%emt 0:00:25]} 17. Bg5 {[%emt 0:00:08]} h6 {[%emt 0:00:58]} 18. Be3 {[%emt 0:00:07]} Nc5 {[%emt 0:01:58]} 19. Qd2 {[%emt 0:01:38]} h5 {[%emt 0:00:56]} 20. Bxc5 {[%emt 0:00:14] C95: Closed Ruy Lopez: Breyer Variation with 10 d4.} dxc5 {[%emt 0:00:14]} 21. Qg5 {[%emt 0:00:06]} Nd7 {[%emt 0:24:36]} 22. Qxd8 {[%emt 0:00:13] White is slightly better.} (22. Nxh5 $2 Qxg5 23. Nxg5 gxh5 $19) 22... Rexd8 {[%emt 0:00:15]} 23. Nf1 {[%emt 0:00:15]} Bd6 {[%emt 0:13:30]} 24. Ne3 {[%emt 0:01:07]} Rdb8 $146 {[%emt 0:26:23]} ({Predecessor:} 24... Nf6 25. g3 Kg7 26. Kg2 Rab8 27. Ng5 Ne8 28. Rf1 Nc7 {½-½ Kristjansson,A (2464)-Repp,H (2509) W-ch37 sf07 email 2013}) 25. Kf1 {[%emt 0:05:01]} Bc8 {[%emt 0:01:26]} 26. Ke2 {[%emt 0:00:31]} Nb6 {[%emt 0:07:02]} 27. Nd2 {[%emt 0:02:17] White is more active.} (27. g4 $16 {gxh5 is the strong threat.} hxg4 28. Nxg4) 27... Bd7 {[%emt 0:01:08] White has an edge.} 28. Ra2 {[%emt 0:19:28]} Kf8 {[%emt 0:02:44]} ({Reject} 28... bxa4 $6 29. Ndxc4 (29. Nexc4 Bb5 $16) 29... Nxc4 30. Nxc4 $16) 29. Rea1 {[%emt 0:04:38]} Ke7 {[%emt 0:00:50]} 30. axb5 {[%emt 0:01:54] Weighted Error Value: White=0.11 (very precise) /Black=0.10 (very precise)   Mistake:       	White=1     	---        Inaccurate:     	White=1     	Black=1      OK:         	White=4     	Black=1} 1/2-1/2

[Event "2nd Bundesliga Nord 2024-25"]
[Site "Germany"]
[Date "2025.02.22"]
[Round "8.8"]
[White "Richter, Christian"]
[Black "Kniest, Oliver"]
[Result "1/2-1/2"]
[Annotator "TA"]
[ECO "E11"]
[WhiteElo "2348"]
[BlackElo "2188"]
[PlyCount "29"]
[EventDate "2024.11.29"]
[EventType "team-tourn"]
[EventCountry "GER"]
[SourceTitle "playchess.com"]
[Source "ChessBase"]
[SourceQuality "1"]
[WhiteTeam "Werder Bremen II"]
[BlackTeam "Solingen II"]
[TimeControl "40/5400+30:1800+30"]

{[%evp 15,29,33,25,16,22,10,38,-14,0,-12,-10,-30,-35,-42,-35,-44]} 1. d4 {[%emt 0:00:03]} Nf6 {[%emt 0:00:11]} 2. Nf3 {[%emt 0:00:19]} e6 {[%emt 0:00:15][%cal Be7e6,Be6e5,Be5e4][%mdl 32]} 3. c4 {[%emt 0:00:17]} Bb4+ {[%emt 0:00:41]} 4. Bd2 {[%emt 0:00:43]} a5 {[%emt 0:01:01]} 5. g3 {[%emt 0:02:43]} d6 {[%emt 0:01:34]} 6. Bg2 {[%emt 0:00:30]} Nbd7 {[%emt 0:00:52]} 7. O-O {[%emt 0:00:41]} e5 {[%emt 0:01:34]} 8. Nc3 {[%emt 0:05:22]} O-O {[%emt 0:01:05]} 9. a3 {[%emt 0:06:54] E11: Bogo-Indian.} Bxc3 {[%emt 0:00:43]} 10. Bxc3 {[%emt 0:00:58]} e4 {[%emt 0:05:09]} 11. Ne1 {[%emt 0:13:20]} ({White should try} 11. Nd2 $14) 11... d5 {[%emt 0:07:10]} 12. cxd5 {[%emt 0:08:51]} Nb6 {[%emt 0:01:19]} 13. Nc2 {[%emt 0:06:58]} Nbxd5 {[%emt 0:02:27]} ({Much weaker is} 13... Nfxd5 $6 14. Bxe4 Qe7 15. Qd3 $16) 14. Qd2 $146 {[%emt 0:05:25]} ({Predecessor:} 14. Bd2 h6 15. Ne3 Re8 16. Qc2 Nxe3 17. Bxe3 Bf5 18. Qb3 Qd7 19. Rfc1 c6 20. a4 {½-½ Tunik,G (2416)-Filippov,A (2634) Al Ain op 2nd 2013 (6)}) 14... c6 {[%emt 0:08:34]} 15. a4 {[%emt 0:08:45] White did not feel at home in the position after the opening.   Weighted Error Value: White=0.24 (precise) /Black=0.08 (flawless)   Mistake:       	White=1     	---        Inaccurate:     	---       	Black=1      OK:         	---       	Black=1} 1/2-1/2